Workbook

Sheet 开始
B1: 关于此模板
B2: 使用这份客户盈利能力分析跟踪客户活动、销售成本和其他成本。
B3: 在表中填写公司名称、日期和详细信息等信息。
B4: 自动计算包含公式的单元格中的值和摘要度量表中的值，并且图表自动更新。
B5: 注意：
B6: “客户盈利能力”工作表的 A 列中提供了附加说明。此文本已被有意隐藏。若要删除文本，请选择 A 列，然后选择“删除”。若要取消隐藏文本，请选择 A 列，然后更改字体颜色。
B7: 若要了解有关该工作表中各表格的详细信息，请在表格内按 Shift+F10，选择“表格”选项，然后选择“替换文本”。

Sheet 客户盈利能力
A1: 使用该工作表创建客户盈利能力分析。有关如何使用此工作表的有用说明位于此列的单元格中。向下移动箭头以开始了解。
A2: 在右侧单元格中输入公司名称。 | B2: 公司名称
A3: 此工作表的标题位于右侧单元格中。 | B3: 客户盈利能力分析
A4: 在右侧单元格输入日期。 | B4: 日期
A5: 提示位于右侧单元格中。 | B5: 将为你计算灰色单元格。无需在其中输入任何内容。
A6: 从右侧单元格开始，在“客户活动”表格中输入详细信息。下一条说明位于单元格 A12 中。 | B6: 客户活动： | C6: 细化名称 1 | D6: 细化名称 2 | E6: 细化名称 3 | F6: 总体
B7: 活跃客户数 - 期初 | C7: 5 | D7: 8 | E7: 8 | F7: =SUM(C7:E7) -> 21
B8: 增加的客户数 | C8: 2 | D8: 4 | E8: 4 | F8: =SUM(C8:E8) -> 10
B9: 失去/终止的客户数 | C9: (1) | D9: (2) | E9: (2) | F9: =SUM(C9:E9) -> (5)
B10: 活跃客户数 - 期末 | C10: =SUBTOTAL(109,客户活动[细化名称 1]) -> 6 | D10: =SUBTOTAL(109,客户活动[细化名称 2]) -> 10 | E10: =SUBTOTAL(109,客户活动[细化名称 3]) -> 10 | F10: =SUBTOTAL(109,客户活动[总体]) -> 26
A12: 从右侧单元格开始，在“盈利能力分析”表格中输入详细信息。下一条说明位于单元格 A16 中。 | B12: 盈利能力分析： | C12: 细化名称 1 | D12: 细化名称 2 | E12: 细化名称 3 | F12: 总体
B13: 每个细化的收入 | C13: ¥1,500,000.00 | D13: ¥1,800,000.00 | E13: ¥2,500,000.00 | F13: =SUM(盈利能力分析[[#This Row],[细化名称 1]:[细化名称 3]]) -> ¥5,800,000.00
B14: 权重 | C14: =+C13/$F$13 -> 26% | D14: =+D13/$F$13 -> 31% | E14: =+E13/$F$13 -> 43% | F14: =SUM(盈利能力分析[[#This Row],[细化名称 1]:[细化名称 3]]) -> 100%
A16: 从右侧单元格开始，在“销售成本”表中输入详细信息。下一条指示位于单元格 A23 中。 | B16: 销售成本： | C16: 细化名称 1 | D16: 细化名称 2 | E16: 细化名称 3 | F16: 总体
B17: 持续服务和支持成本 | C17: ¥1,000,000.00 | D17: ¥1,400,000.00 | E17: ¥1,400,000.00 | F17: =SUM(C17:E17) -> ¥3,800,000.00
B18: 其他直接客户成本 | C18: ¥200,000.00 | D18: ¥100,000.00 | E18: ¥100,000.00 | F18: =SUM(C18:E18) -> ¥400,000.00
B19: 销售总成本 | C19: =SUM(C17:C18) -> ¥1,200,000.00 | D19: =SUM(D17:D18) -> ¥1,500,000.00 | E19: =SUM(E17:E18) -> ¥1,500,000.00 | F19: =SUM(F17:F18) -> ¥4,200,000.00
B20: 毛利率 | C20: =+C13-C19 -> ¥300,000.00 | D20: =+D13-D19 -> ¥300,000.00 | E20: =+E13-E19 -> ¥1,000,000.00 | F20: =+F13-F19 -> ¥1,600,000.00
B21: 权重 | C21: =MAX(0, MIN(1,C20/$F$20)) -> 19% | D21: =MAX(0, MIN(1,D20/$F$20)) -> 19% | E21: =MAX(0, MIN(1,E20/$F$20)) -> 63% | F21: =SUM(C21:E21) -> 100%
A23: 从右侧单元格开始，在“其他成本”表中输入详细信息。下一条说明位于单元格 A31 中。 | B23: 其他成本： | C23: 细化名称 1 | D23: 细化名称 2 | E23: 细化名称 3 | F23: 总体
B24: 客户获取 | C24: ¥105,000.00 | D24: ¥120,000.00 | E24: ¥235,000.00 | F24: =SUM(其他成本[[#This Row],[细化名称 1]:[细化名称 3]]) -> ¥460,000.00
B25: 客户营销 | C25: ¥150,000.00 | D25: ¥125,000.00 | E25: ¥275,000.00 | F25: =SUM(C25:E25) -> ¥550,000.00
B26: 客户终止 | C26: ¥80,000.00 | D26: ¥190,000.00 | E26: ¥140,000.00 | F26: =SUM(C26:E26) -> ¥410,000.00
B27: 其他客户总成本 | C27: =SUM(C24:C26) -> ¥335,000.00 | D27: =SUM(D24:D26) -> ¥435,000.00 | E27: =SUM(E24:E26) -> ¥650,000.00 | F27: =SUM(F24:F26) -> ¥1,420,000.00
B28: 按细化列出的客户盈利能力 | C28: =+C20-C27 -> (¥35,000.00) | D28: =+D20-D27 -> (¥135,000.00) | E28: =+E20-E27 -> ¥350,000.00 | F28: =SUM(C28:E28) -> ¥180,000.00
B29: 权重 | C29: =MAX(0,MIN(1, C28/$F$28)) -> 0% | D29: =MAX(0,MIN(1, D28/$F$28)) -> 0% | E29: =MAX(0,MIN(1, E28/$F$28)) -> 100% | F29: =SUM(C29:E29) -> 100%
A31: 从右侧单元格开始的摘要度量会自动更新。下一条说明位于单元格 A37 中。 | B31: 摘要度量： | C31: 细化名称 1 | D31: 细化名称 2 | E31: 细化名称 3 | F31: 趋势
B32: 每个获得客户的平均成本 | C32: =+C24/C8 -> ¥52,500.00 | D32: =+D24/D8 -> ¥30,000.00 | E32: =+E24/E8 -> ¥58,750.00
B33: 每个终止客户的平均成本 | C33: =-C26/C9 -> ¥80,000.00 | D33: =-D26/D9 -> ¥95,000.00 | E33: =-E26/E9 -> ¥70,000.00
B34: 每个活跃客户的平均营销成本 | C34: =+C26/客户活动[[#Totals],[细化名称 1]] -> ¥13,333.33 | D34: =+D25/客户活动[[#Totals],[细化名称 2]] -> ¥12,500.00 | E34: =+E25/客户活动[[#Totals],[细化名称 3]] -> ¥27,500.00
B35: 每个客户的平均利润（损失） | C35: =+C29/客户活动[[#Totals],[细化名称 1]] -> ¥0.00 | D35: =+D28/客户活动[[#Totals],[细化名称 2]] -> (¥13,500.00) | E35: =+E28/客户活动[[#Totals],[细化名称 3]] -> ¥35,000.00
A37: 显示每个客户细分的摘要​​度量的簇状柱形图位于右侧的单元格中。 | B37: 显示每个客户细分的摘要​​度量的簇状柱形图位于此单元格中。
